fUST/lending_fUST_20260501
["ID","MTS","AMOUNT","RATE_DAILY","PERIOD"]
[421427565,1777631440000,-400.298143,0.00016438,2]
[421427567,1777631440000,-151.0,0.00016438,2]
[421427568,1777631440000,-400.298143,0.00016438,2]
[421427569,1777631440000,-151.0,0.00016438,2]
[421427570,1777631440000,-400.298143,0.00016438,2]
[421427560,1777631440000,-169.736824,0.00016438,2]
[421427571,1777631440000,-194.987953,0.00016438,2]
[421427573,1777631440000,-234.296182,0.00016438,2]
[421427574,1777631440000,-234.296182,0.00016438,2]
[421427575,1777631440000,-234.296182,0.00016438,2]
[421427576,1777631440000,-234.296182,0.00016438,2]
[421427577,1777631440000,-234.296182,0.00016438,2]
[421427579,1777631440000,-206.110763,0.00016438,2]
[421427581,1777631440000,-234.296182,0.00016438,2]
[421427527,1777631440000,-213.260504,0.00016438,2]
[421427580,1777631440000,-234.296182,0.00016438,2]
[421427582,1777631440000,-156.439012,0.00016438,2]
[421427583,1777631440000,-151.0,0.00016438,2]
[421427572,1777631440000,-234.296182,0.00016438,2]
[421427559,1777631440000,-400.298143,0.00016438,2]
[421427578,1777631440000,-151.0,0.00016438,2]
[421427556,1777631440000,-169.736824,0.00016438,2]
[421427557,1777631440000,-400.298143,0.00016438,2]
[421427526,1777631440000,-213.260504,0.00016438,2]
[421427532,1777631440000,-213.260504,0.00016438,2]
[421427530,1777631440000,-213.260504,0.00016438,2]
[421427528,1777631440000,-151.0,0.00016438,2]
[421427531,1777631440000,-213.260504,0.00016438,2]
[421427534,1777631440000,-213.260504,0.00016438,2]
[421427533,1777631440000,-213.260504,0.00016438,2]
[421427535,1777631440000,-680.876265,0.00016438,2]
[421427537,1777631440000,-680.876265,0.00016438,2]
[421427538,1777631440000,-680.876265,0.00016438,2]
[421427529,1777631440000,-213.260504,0.00016438,2]
[421427541,1777631440000,-680.876265,0.00016438,2]
[421427539,1777631440000,-680.876265,0.00016438,2]
[421427555,1777631440000,-169.736824,0.00016438,2]
[421427552,1777631440000,-680.876265,0.00016438,2]
[421427551,1777631440000,-169.736824,0.00016438,2]
[421427550,1777631440000,-680.876265,0.00016438,2]
[421427554,1777631440000,-400.298143,0.00016438,2]
[421427548,1777631440000,-169.736824,0.00016438,2]
[421427545,1777631440000,-680.876265,0.00016438,2]
[421427540,1777631440000,-169.736824,0.00016438,2]
[421427543,1777631440000,-169.736824,0.00016438,2]
[421427553,1777631440000,-400.298143,0.00016438,2]
[421427609,1777631441000,-151.0,0.00016438,2]
[421427619,1777631441000,-214.01345,0.00016438,2]
[421427614,1777631441000,-151.0,0.00016438,2]
[421427611,1777631441000,-151.0,0.00016438,2]
[421427613,1777631441000,-151.0,0.00016438,2]
[421427615,1777631441000,-151.0,0.00016438,2]
[421427617,1777631441000,-151.0,0.00016438,2]
[421427616,1777631441000,-151.0,0.00016438,2]
[421427612,1777631441000,-151.0,0.00016438,2]
[421427622,1777631441000,-1824.996871,0.00016438,2]
[421427620,1777631441000,-151.0,0.00016438,2]
[421427621,1777631441000,-217.815026,0.00016438,2]
[421427623,1777631441000,-1824.996871,0.00016438,2]
[421427624,1777631441000,-1824.996871,0.00016438,2]
[421427626,1777631441000,-1824.996871,0.00016438,2]
[421427627,1777631441000,-1824.996871,0.00016438,2]
[421427628,1777631441000,-1824.996871,0.00016438,2]
[421427629,1777631441000,-1824.996871,0.00016438,2]
[421427610,1777631441000,-151.0,0.00016438,2]
[421427631,1777631441000,-1824.996871,0.00016438,2]
[421427618,1777631441000,-151.0,0.00016438,2]
[421427607,1777631441000,-231.164416,0.00016438,2]
[421427595,1777631441000,-353.572883,0.00016438,2]
[421427604,1777631441000,-231.164416,0.00016438,2]
[421427630,1777631441000,-1824.996871,0.00016438,2]
[421427584,1777631441000,-353.572883,0.00016438,2]
[421427586,1777631441000,-353.572883,0.00016438,2]
[421427585,1777631441000,-353.572883,0.00016438,2]
[421427587,1777631441000,-353.572883,0.00016438,2]
[421427588,1777631441000,-353.572883,0.00016438,2]
[421427589,1777631441000,-353.572883,0.00016438,2]
[421427590,1777631441000,-353.572883,0.00016438,2]
[421427591,1777631441000,-353.572883,0.00016438,2]
[421427592,1777631441000,-353.572883,0.00016438,2]
[421427594,1777631441000,-353.572883,0.00016438,2]
[421427596,1777631441000,-231.164416,0.00016438,2]
[421427593,1777631441000,-353.572883,0.00016438,2]
[421427597,1777631441000,-231.164416,0.00016438,2]
[421427599,1777631441000,-151.0,0.00016438,2]
[421427598,1777631441000,-231.164416,0.00016438,2]
[421427600,1777631441000,-231.164416,0.00016438,2]
[421427601,1777631441000,-231.164416,0.00016438,2]
[421427602,1777631441000,-231.164416,0.00016438,2]
[421427606,1777631441000,-231.164416,0.00016438,2]
[421427605,1777631441000,-231.164416,0.00016438,2]
[421427608,1777631441000,-231.164416,0.00016438,2]
[421427632,1777631441000,-1824.996871,0.00016438,2]
[421427603,1777631441000,-231.164416,0.00016438,2]
[421427634,1777631441000,-1824.996871,0.00016438,2]
[421427659,1777631441000,-518.165641,0.00016438,2]
[421427681,1777631441000,-282.583737,0.00016438,2]
[421427664,1777631441000,-406.200719,0.00016438,2]
[421427663,1777631441000,-406.200719,0.00016438,2]
[421427662,1777631441000,-406.200719,0.00016438,2]
[421427665,1777631441000,-406.200719,0.00016438,2]
[421427666,1777631441000,-406.200719,0.00016438,2]
[421427670,1777631441000,-282.583737,0.00016438,2]
[421427668,1777631441000,-183.416434,0.00016438,2]
[421427671,1777631441000,-282.583737,0.00016438,2]
[421427667,1777631441000,-151.0,0.00016438,2]
[421427669,1777631441000,-282.583737,0.00016438,2]
[421427674,1777631441000,-282.583737,0.00016438,2]
[421427672,1777631441000,-282.583737,0.00016438,2]
[421427676,1777631441000,-282.583737,0.00016438,2]
[421427675,1777631441000,-282.583737,0.00016438,2]
[421427677,1777631441000,-282.583737,0.00016438,2]
[421427679,1777631441000,-282.583737,0.00016438,2]
[421427678,1777631441000,-282.583737,0.00016438,2]
[421427680,1777631441000,-282.583737,0.00016438,2]
[421427633,1777631441000,-1824.996871,0.00016438,2]
[421427660,1777631441000,-406.200719,0.00016438,2]
[421427661,1777631441000,-518.165641,0.00016438,2]
[421427673,1777631441000,-282.583737,0.00016438,2]
[421427655,1777631441000,-518.165641,0.00016438,2]
[421427635,1777631441000,-518.165641,0.00016438,2]
[421427657,1777631441000,-518.165641,0.00016438,2]
[421427636,1777631441000,-518.165641,0.00016438,2]
[421427637,1777631441000,-518.165641,0.00016438,2]
[421427638,1777631441000,-518.165641,0.00016438,2]
[421427639,1777631441000,-518.165641,0.00016438,2]
[421427640,1777631441000,-518.165641,0.00016438,2]
[421427642,1777631441000,-518.165641,0.00016438,2]
[421427643,1777631441000,-406.200719,0.00016438,2]
[421427644,1777631441000,-518.165641,0.00016438,2]
[421427646,1777631441000,-406.200719,0.00016438,2]
[421427641,1777631441000,-406.200719,0.00016438,2]
[421427647,1777631441000,-518.165641,0.00016438,2]
[421427656,1777631441000,-406.200719,0.00016438,2]
[421427645,1777631441000,-406.200719,0.00016438,2]
[421427653,1777631441000,-518.165641,0.00016438,2]
[421427652,1777631441000,-406.200719,0.00016438,2]
[421427651,1777631441000,-406.200719,0.00016438,2]
[421427654,1777631441000,-406.200719,0.00016438,2]
[421427649,1777631441000,-406.200719,0.00016438,2]
[421427650,1777631441000,-518.165641,0.00016438,2]
[421427648,1777631441000,-518.165641,0.00016438,2]
[421427658,1777631441000,-406.200719,0.00016438,2]
[421427722,1777631442000,-251.449894,0.00016438,2]
[421427724,1777631442000,-1398.108213,0.00016438,2]
[421427721,1777631442000,-151.0,0.00016438,2]
[421427726,1777631442000,-1398.108213,0.00016438,2]
[421427723,1777631442000,-1398.108213,0.00016438,2]
[421427725,1777631442000,-1398.108213,0.00016438,2]
[421427719,1777631442000,-151.0,0.00016438,2]
[421427718,1777631442000,-151.0,0.00016438,2]
[421427717,1777631442000,-151.0,0.00016438,2]
[421427716,1777631442000,-151.0,0.00016438,2]
[421427727,1777631442000,-1398.108213,0.00016438,2]
[421427714,1777631442000,-151.0,0.00016438,2]
[421427720,1777631442000,-151.0,0.00016438,2]
[421427729,1777631442000,-1398.108213,0.00016438,2]
[421427739,1777631442000,-151.0,0.00016438,2]
[421427730,1777631442000,-1398.108213,0.00016438,2]
[421427734,1777631442000,-1398.108213,0.00016438,2]
[421427732,1777631442000,-1398.108213,0.00016438,2]
[421427733,1777631442000,-1398.108213,0.00016438,2]
[421427731,1777631442000,-1398.108213,0.00016438,2]
[421427735,1777631442000,-151.0,0.00016438,2]
[421427736,1777631442000,-1398.108213,0.00016438,2]
[421427737,1777631442000,-151.0,0.00016438,2]
[421427741,1777631442000,-151.0,0.00016438,2]
[421427740,1777631442000,-1398.108213,0.00016438,2]
[421427743,1777631442000,-151.0,0.00016438,2]
[421427742,1777631442000,-1398.108213,0.00016438,2]
[421427715,1777631442000,-151.0,0.00016438,2]
[421427728,1777631442000,-1398.108213,0.00016438,2]
[421427713,1777631442000,-162.235369,0.00016438,2]
[421427689,1777631442000,-199.241777,0.00016438,2]
[421427712,1777631442000,-525.451867,0.00016438,2]
[421427682,1777631442000,-282.583737,0.00016438,2]
[421427683,1777631442000,-282.583737,0.00016438,2]
[421427684,1777631442000,-282.583737,0.00016438,2]
[421427685,1777631442000,-151.0,0.00016438,2]
[421427687,1777631442000,-151.0,0.00016438,2]
[421427686,1777631442000,-151.0,0.00016438,2]
[421427688,1777631442000,-151.0,0.00016438,2]
[421427744,1777631442000,-151.0,0.00016438,2]
[421427690,1777631442000,-151.0,0.00016438,2]
[421427691,1777631442000,-525.451867,0.00016438,2]
[421427692,1777631442000,-525.451867,0.00016438,2]
[421427693,1777631442000,-525.451867,0.00016438,2]
[421427695,1777631442000,-525.451867,0.00016438,2]
[421427696,1777631442000,-525.451867,0.00016438,2]
[421427697,1777631442000,-151.0,0.00016438,2]
[421427694,1777631442000,-525.451867,0.00016438,2]
[421427699,1777631442000,-151.0,0.00016438,2]
[421427702,1777631442000,-525.451867,0.00016438,2]
[421427698,1777631442000,-525.451867,0.00016438,2]
[421427701,1777631442000,-151.0,0.00016438,2]
[421427700,1777631442000,-525.451867,0.00016438,2]
[421427703,1777631442000,-151.0,0.00016438,2]
[421427705,1777631442000,-525.451867,0.00016438,2]
[421427704,1777631442000,-525.451867,0.00016438,2]
[421427708,1777631442000,-208.859499,0.00016438,2]
[421427709,1777631442000,-525.451867,0.00016438,2]
[421427706,1777631442000,-151.0,0.00016438,2]
[421427707,1777631442000,-525.451867,0.00016438,2]
[421427710,1777631442000,-525.451867,0.00016438,2]
[421427711,1777631442000,-525.451867,0.00016438,2]
[421427746,1777631442000,-151.0,0.00016438,2]
[421427738,1777631442000,-1398.108213,0.00016438,2]
[421427748,1777631442000,-151.0,0.00016438,2]
[421427781,1777631442000,-189.27430386,0.00017307,2]
[421427782,1777631442000,-102388.80291231,0.00017308,2]
[421427783,1777631442000,-151.252632,0.00017308,2]
[421427784,1777631442000,-353.572883,0.00017308,2]
[421427786,1777631442000,-353.572883,0.00017308,2]
[421427785,1777631442000,-353.572883,0.00017308,2]
[421427787,1777631442000,-353.572883,0.00017308,2]
[421427788,1777631442000,-231.164416,0.00017308,2]
[421427790,1777631442000,-231.164416,0.00017308,2]
[421427791,1777631442000,-231.164416,0.00017308,2]
[421427789,1777631442000,-231.164416,0.00017308,2]
[421427793,1777631442000,-151.0,0.00017308,2]
[421427792,1777631442000,-151.0,0.00017308,2]
[421427797,1777631442000,-1824.996871,0.00017308,2]
[421427794,1777631442000,-151.0,0.00017308,2]
[421427796,1777631442000,-1824.996871,0.00017308,2]
[421427799,1777631442000,-518.165641,0.00017308,2]
[421427798,1777631442000,-1824.996871,0.00017308,2]
[421427800,1777631442000,-518.165641,0.00017308,2]
[421427801,1777631442000,-406.200719,0.00017308,2]
[421427803,1777631442000,-406.200719,0.00017308,2]
[421427802,1777631442000,-518.165641,0.00017308,2]
[421427804,1777631442000,-518.165633,0.00017308,2]
[421427806,1777631442000,-406.200714,0.00017308,2]
[421427805,1777631442000,-406.200719,0.00017308,2]
[421427807,1777631442000,-282.583737,0.00017308,2]
[421427809,1777631442000,-282.583737,0.00017308,2]
[421427808,1777631442000,-282.583737,0.00017308,2]
[421427747,1777631442000,-151.0,0.00016438,2]
[421427777,1777631442000,-879.0,0.00017148,2]
[421427780,1777631442000,-331.15838674,0.00017307,2]
[421427795,1777631442000,-1824.996871,0.00017308,2]
[421427776,1777631442000,-2150.738,0.00017138,2]
[421427779,1777631442000,-420.94400551,0.000173,2]
[421427749,1777631442000,-151.0,0.00016438,2]
[421427750,1777631442000,-151.0,0.00016438,2]
[421427754,1777631442000,-152.0,0.00016595,7]
[421427753,1777631442000,-151.0,0.000165,2]
[421427751,1777631442000,-1000.0,0.00016475,2]
[421427752,1777631442000,-791.0,0.00016475,2]
[421427755,1777631442000,-273.01,0.000166,2]
[421427757,1777631442000,-2127.47,0.00016712,2]
[421427759,1777631442000,-285.66,0.00016818,2]
[421427756,1777631442000,-152.0,0.00016611,7]
[421427761,1777631442000,-160.0,0.00016962,2]
[421427760,1777631442000,-279.0,0.00016818,2]
[421427758,1777631442000,-1977.7514345,0.00016791,2]
[421427762,1777631442000,-219.366698,0.00016962,2]
[421427745,1777631442000,-151.0,0.00016438,2]
[421427769,1777631442000,-151.0,0.00016962,2]
[421427765,1777631442000,-1398.108213,0.00016962,2]
[421427766,1777631442000,-1398.108213,0.00016962,2]
[421427764,1777631442000,-1398.108213,0.00016962,2]
[421427768,1777631442000,-1398.10820974,0.00016962,2]
[421427767,1777631442000,-208.414491,0.00016962,2]
[421427770,1777631442000,-151.0,0.00016962,2]
[421427771,1777631442000,-206.00188299,0.000171,2]
[421427773,1777631442000,-151.0,0.000171,2]
[421427763,1777631442000,-278.733397,0.00016962,2]
[421427774,1777631442000,-500.0,0.00017137,2]
[421427772,1777631442000,-420.94400551,0.000171,2]
[421427778,1777631442000,-206.00188299,0.000173,2]
[421427775,1777631442000,-500.0,0.00017137,2]
[421427857,1777631443000,-151.0,0.0001783,2]
[421427855,1777631443000,-169.736824,0.0001783,2]
[421427846,1777631443000,-213.260504,0.0001783,2]
[421427859,1777631443000,-400.298143,0.0001783,2]
[421427853,1777631443000,-680.876265,0.0001783,2]
[421427858,1777631443000,-169.736824,0.0001783,2]
[421427851,1777631443000,-680.876265,0.0001783,2]
[421427854,1777631443000,-400.298143,0.0001783,2]
[421427852,1777631443000,-169.736824,0.0001783,2]
[421427850,1777631443000,-169.736824,0.0001783,2]
[421427849,1777631443000,-680.876265,0.0001783,2]
[421427847,1777631443000,-680.876265,0.0001783,2]
[421427860,1777631443000,-151.0,0.0001783,2]
[421427856,1777631443000,-400.298143,0.0001783,2]
[421427862,1777631443000,-151.0,0.0001783,2]
[421427869,1777631443000,-822.0,0.00017908,2]
[421427864,1777631443000,-234.296182,0.0001783,2]
[421427866,1777631443000,-234.296182,0.0001783,2]
[421427863,1777631443000,-400.298143,0.0001783,2]
[421427867,1777631443000,-234.296182,0.0001783,2]
[421427868,1777631443000,-632.1903887,0.0001783,2]
[421427872,1777631443000,-198.91648674,0.00018,2]
[421427871,1777631443000,-200.06045917,0.00018,2]
[421427870,1777631443000,-172.66050256,0.00018,2]
[421427873,1777631443000,-282.03834919,0.00018,2]
[421427874,1777631443000,-209.64503329,0.00018,2]
[421427875,1777631443000,-199.00903174,0.00018,2]
[421427877,1777631443000,-500.0,0.00018013,2]
[421427876,1777631443000,-2205.68836992,0.00018,30]
[421427865,1777631443000,-234.296182,0.0001783,2]
[421427845,1777631443000,-213.260504,0.0001783,2]
[421427878,1777631443000,-1305.2,0.00018015,2]
[421427835,1777631443000,-500.0,0.00017828,2]
[421427811,1777631443000,-151.0,0.00017308,2]
[421427810,1777631443000,-282.583742,0.00017308,2]
[421427813,1777631443000,-525.451867,0.00017308,2]
[421427812,1777631443000,-525.451867,0.00017308,2]
[421427814,1777631443000,-151.0,0.00017308,2]
[421427816,1777631443000,-525.451864,0.00017308,2]
[421427815,1777631443000,-525.451867,0.00017308,2]
[421427820,1777631443000,-211.389729,0.00017473,2]
[421427817,1777631443000,-151.0,0.00017308,2]
[421427818,1777631443000,-151.0,0.00017308,2]
[421427819,1777631443000,-278.551,0.00017344,2]
[421427821,1777631443000,-160.0,0.00017473,2]
[421427822,1777631443000,-630.084331,0.00017473,2]
[421427823,1777631443000,-1100.168663,0.00017473,2]
[421427824,1777631443000,-206.00188299,0.000175,2]
[421427827,1777631443000,-264.169,0.00017503,2]
[421427826,1777631443000,-646.0,0.00017503,2]
[421427829,1777631443000,-185.0,0.00017503,2]
[421427828,1777631443000,-442.0,0.00017503,2]
[421427831,1777631443000,-2230.315306,0.00017686,2]
[421427833,1777631443000,-420.94400551,0.000178,2]
[421427832,1777631443000,-151.0,0.000177,2]
[421427830,1777631443000,-420.94400551,0.000176,2]
[421427834,1777631443000,-299.136407,0.0001781,2]
[421427837,1777631443000,-500.0,0.00017829,2]
[421427839,1777631443000,-500.0,0.00017829,2]
[421427841,1777631443000,-14898.7276827,0.0001783,2]
[421427843,1777631443000,-213.260504,0.0001783,2]
[421427836,1777631443000,-500.0,0.00017828,2]
[421427844,1777631443000,-213.260504,0.0001783,2]
[421427880,1777631443000,-1000.0,0.00018123,2]
[421427825,1777631443000,-420.94400551,0.000175,2]
[421427882,1777631443000,-1824.996871,0.00018123,2]
[421427916,1777631443000,-162.70823338,0.00018219,2]
[421427917,1777631443000,-2312.83697232,0.00018234,2]
[421427919,1777631443000,-151.0,0.000183,2]
[421427920,1777631443000,-1977.7514345,0.00018345,2]
[421427918,1777631443000,-652.83573615,0.00018248,2]
[421427922,1777631443000,-1305.2,0.00018412,2]
[421427921,1777631443000,-859.205906,0.00018347,2]
[421427923,1777631443000,-668.883482,0.00018493,2]
[421427924,1777631443000,-1305.2,0.00018611,2]
[421427929,1777631443000,-500.0,0.0001862,2]
[421427928,1777631443000,-537.6845,0.00018615,3]
[421427925,1777631443000,-162.380719,0.00018615,3]
[421427930,1777631443000,-500.0,0.0001862,2]
[421427881,1777631443000,-1000.0,0.00018123,2]
[421427926,1777631443000,-537.68450001,0.00018615,3]
[421427927,1777631443000,-449.02602927,0.00018615,3]
[421427931,1777631443000,-500.0,0.0001862,2]
[421427934,1777631443000,-500.0,0.0001862,2]
[421427932,1777631443000,-500.0,0.0001862,2]
[421427933,1777631443000,-500.0,0.0001862,2]
[421427935,1777631443000,-834.472,0.0001862,2]
[421427936,1777631443000,-188901.97039712,0.0001862,2]
[421427938,1777631443000,-151.0,0.00018633,2]
[421427937,1777631443000,-160.0,0.00018633,4]
[421427939,1777631443000,-151.0,0.00018633,2]
[421427940,1777631443000,-151.0,0.00018633,2]
[421427942,1777631443000,-213.260504,0.00018782,2]
[421427941,1777631443000,-822.0,0.00018742,2]
[421427944,1777631443000,-213.260504,0.00018782,2]
[421427910,1777631443000,-500.0,0.00018219,2]
[421427913,1777631443000,-151.5,0.00018219,2]
[421427943,1777631443000,-213.260504,0.00018782,2]
[421427915,1777631443000,-151.5,0.00018219,2]
[421427914,1777631443000,-234.20137779,0.00018219,2]
[421427879,1777631443000,-822.0,0.00018123,2]
[421427885,1777631443000,-1824.99687739,0.00018123,2]
[421427886,1777631443000,-475.39686306,0.00018147,2]
[421427883,1777631443000,-1824.996871,0.00018123,2]
[421427887,1777631443000,-879.0,0.00018148,2]
[421427890,1777631443000,-1305.2,0.00018214,2]
[421427889,1777631443000,-199.00903174,0.000182,2]
[421427888,1777631443000,-209.64503329,0.000182,2]
[421427892,1777631443000,-500.0,0.00018219,2]
[421427895,1777631443000,-353.572883,0.00018219,2]
[421427891,1777631443000,-500.0,0.00018219,2]
[421427893,1777631443000,-393.01507182,0.00018219,2]
[421427896,1777631443000,-353.572883,0.00018219,2]
[421427894,1777631443000,-353.572883,0.00018219,2]
[421427884,1777631443000,-1824.996871,0.00018123,2]
[421427898,1777631443000,-231.164416,0.00018219,2]
[421427897,1777631443000,-353.572879,0.00018219,2]
[421427911,1777631443000,-151.5,0.00018219,2]
[421427907,1777631443000,-500.0,0.00018219,2]
[421427909,1777631443000,-151.5,0.00018219,2]
[421427908,1777631443000,-500.0,0.00018219,2]
[421427904,1777631443000,-151.0,0.00018219,2]
[421427912,1777631443000,-473.31547581,0.00018219,2]
[421427905,1777631443000,-292.52238375,0.00018219,2]
[421427903,1777631443000,-298.181139,0.00018219,2]
[421427899,1777631443000,-231.164416,0.00018219,2]
[421427902,1777631443000,-151.0,0.00018219,2]
[421427900,1777631443000,-231.164416,0.00018219,2]
[421427906,1777631443000,-500.0,0.00018219,2]
[421427901,1777631443000,-231.164409,0.00018219,2]
[421427987,1777631444000,-169.736824,0.00018886,2]
[421427985,1777631444000,-680.876256,0.00018886,2]
[421427986,1777631444000,-400.298143,0.00018886,2]
[421427984,1777631444000,-169.736824,0.00018886,2]
[421427982,1777631444000,-680.876265,0.00018886,2]
[421427979,1777631444000,-213.260498,0.00018886,2]
[421427981,1777631444000,-680.876265,0.00018886,2]
[421427977,1777631444000,-213.260504,0.00018886,2]
[421427980,1777631444000,-680.876265,0.00018886,2]
[421427990,1777631444000,-169.736819,0.00018886,2]
[421427973,1777631444000,-151.0,0.00018886,2]
[421427983,1777631444000,-169.736824,0.00018886,2]
[421427978,1777631444000,-213.260504,0.00018886,2]
[421427994,1777631444000,-234.296182,0.00018886,2]
[421427989,1777631444000,-151.0,0.00018886,2]
[421427991,1777631444000,-400.298143,0.00018886,2]
[421427992,1777631444000,-151.0,0.00018886,2]
[421427993,1777631444000,-400.298143,0.00018886,2]
[421427995,1777631444000,-234.296182,0.00018886,2]
[421427996,1777631444000,-234.296182,0.00018886,2]
[421427997,1777631444000,-234.296184,0.00018886,2]
[421428001,1777631444000,-167.65907627,0.00018899,2]
[421427998,1777631444000,-187.70529351,0.00018899,2]
[421428000,1777631444000,-151.5,0.00018899,2]
[421427999,1777631444000,-151.5,0.00018899,2]
[421427976,1777631444000,-213.260504,0.00018886,2]
[421428002,1777631444000,-151.0,0.00018899,2]
[421427988,1777631444000,-400.298143,0.00018886,2]
[421427974,1777631444000,-151.0,0.00018886,2]
[421427959,1777631444000,-151.0,0.00018782,2]
[421427975,1777631444000,-151.0,0.00018886,2]
[421428004,1777631444000,-151.0,0.00018899,2]
[421427946,1777631444000,-680.876265,0.00018782,2]
[421427950,1777631444000,-169.736824,0.00018782,2]
[421427945,1777631444000,-213.260504,0.00018782,2]
[421427948,1777631444000,-169.736824,0.00018782,2]
[421427949,1777631444000,-680.876265,0.00018782,2]
[421427947,1777631444000,-680.876265,0.00018782,2]
[421427952,1777631444000,-400.298143,0.00018782,2]
[421427951,1777631444000,-680.876265,0.00018782,2]
[421427953,1777631444000,-169.736824,0.00018782,2]
[421427954,1777631444000,-400.298143,0.00018782,2]
[421427955,1777631444000,-151.0,0.00018782,2]
[421427956,1777631444000,-169.736824,0.00018782,2]
[421427957,1777631444000,-400.298143,0.00018782,2]
[421427958,1777631444000,-151.0,0.00018782,2]
[421427961,1777631444000,-234.296182,0.00018782,2]
[421427962,1777631444000,-234.296182,0.00018782,2]
[421427960,1777631444000,-400.298143,0.00018782,2]
[421427963,1777631444000,-234.296182,0.00018782,2]
[421427965,1777631444000,-2398.4119403,0.00018782,2]
[421427970,1777631444000,-822.0,0.00018858,2]
[421427967,1777631444000,-295.0569019,0.00018842,30]
[421427964,1777631444000,-234.296182,0.00018782,2]
[421427966,1777631444000,-1305.2,0.00018809,2]
[421427969,1777631444000,-822.0,0.00018858,2]
[421427968,1777631444000,-152.6068403,0.00018842,30]
[421427972,1777631444000,-155.0,0.00018883,2]
[421427971,1777631444000,-839.0,0.00018858,2]
[421428006,1777631444000,-500.0,0.00018998,2]
[421428063,1777631444000,-500.0,0.00019173,2]
[421428007,1777631444000,-500.0,0.00018998,2]
[421428039,1777631444000,-879.0,0.00019148,2]
[421428035,1777631444000,-151.0,0.000191,2]
[421428042,1777631444000,-676.3884,0.00019168,2]
[421428043,1777631444000,-676.3884,0.00019168,2]
[421428041,1777631444000,-166.5,0.00019159,2]
[421428044,1777631444000,-676.3884,0.00019168,2]
[421428047,1777631444000,-500.0,0.00019173,2]
[421428046,1777631444000,-500.0,0.00019173,2]
[421428045,1777631444000,-676.3884,0.00019168,2]
[421428050,1777631444000,-500.0,0.00019173,2]
[421428051,1777631444000,-500.0,0.00019173,2]
[421428048,1777631444000,-500.0,0.00019173,2]
[421428049,1777631444000,-500.0,0.00019173,2]
[421428053,1777631444000,-501.1203498,0.00019173,2]
[421428054,1777631444000,-213.43426477,0.00019173,2]
[421428052,1777631444000,-500.0,0.00019173,2]
[421428056,1777631444000,-500.0,0.00019173,2]
[421428058,1777631444000,-500.0,0.00019173,2]
[421428060,1777631444000,-272.25961729,0.00019173,2]
[421428055,1777631444000,-500.0,0.00019173,2]
[421428059,1777631444000,-500.0,0.00019173,2]
[421428061,1777631444000,-500.0,0.00019173,2]
[421428062,1777631444000,-500.0,0.00019173,2]
[421428066,1777631444000,-163.98363867,0.00019173,2]
[421428065,1777631444000,-506.48951177,0.00019173,2]
[421428064,1777631444000,-500.0,0.00019173,2]
[421428003,1777631444000,-151.0,0.00018899,2]
[421428040,1777631444000,-151.0,0.00019158,2]
[421428037,1777631444000,-151.0,0.000191,2]
[421428057,1777631444000,-500.0,0.00019173,2]
[421428038,1777631444000,-160.0,0.00019103,5]
[421428036,1777631444000,-151.0,0.000191,2]
[421428005,1777631444000,-1239.04282344,0.00018986,10]
[421428008,1777631444000,-500.0,0.00018998,2]
[421428010,1777631444000,-500.0,0.00018998,2]
[421428013,1777631444000,-500.0,0.00018999,2]
[421428015,1777631444000,-500.0,0.00018999,2]